bitfinex-derivatives/quotes_SOLF0:USTF0_20250624
["timestamp","ask_amount","ask_price","bid_price","bid_amount"]
[1750784374875,58.7405,146.53,146.37,163.9]
[1750784375070,58.7405,146.53,146.38,3.10183262]
[1750784375265,6.8251,146.44,146.39,17.73121409]
[1750784375569,10.90431409,146.51,146.39,10.90431409]
[1750784375772,58.7405,146.53,146.4,6.8268]
[1750784375968,58.7405,146.53,146.35,10.90431409]
[1750784376171,10.90431409,146.49,146.37,10.90431409]
[1750784376470,56.5378,146.48,146.34,65.08431409]
[1750784376976,10.90431409,146.46,146.34,54.18]
[1750784377275,4.6112,146.45,146.34,54.18]
[1750784377873,4.6112,146.45,146.34,61.0093]
[1750784378071,4.6112,146.45,146.35,10.90431409]
[1750784378369,6.8267,146.41,146.38,10.90431409]
[1750784378564,4.6112,146.45,146.38,10.90431409]
[1750784379171,4.6112,146.45,146.35,10.90431409]
[1750784379570,4.6112,146.45,146.34,54.18]
[1750784379772,4.6112,146.45,146.35,10.90431409]
[1750784379973,6.8276,146.39,146.35,10.90431409]
[1750784380276,4.6112,146.45,146.35,10.90431409]
[1750784380478,6.8283,146.37,146.34,54.18]
[1750784380668,4.6112,146.45,146.34,54.18]
[1750784380868,4.6112,146.45,146.39,10.90431409]
[1750784381064,646.8178,146.48,146.39,65.08431409]
[1750784381065,2.3578,146.48,146.39,65.08431409]
[1750784381271,10.90431409,146.58,146.45,10.90431409]
[1750784381576,2.2136,146.55,146.43,10.90431409]
[1750784381775,10.90431409,146.51,146.39,54.18]
[1750784382077,6.8245,146.46,146.41,6.8263]
[1750784382276,648.8927,146.54,146.42,10.90431409]
[1750784382667,648.8927,146.54,146.41,10.90431409]
[1750784383072,10.90431409,146.53,146.41,10.90431409]
[1750784383272,659.79701409,146.54,146.41,10.90431409]
[1750784383576,6.8239,146.47,146.41,10.90431409]
[1750784383770,659.79701409,146.54,146.41,10.90431409]
[1750784383972,648.8927,146.54,146.41,10.90431409]
[1750784384280,659.79701409,146.54,146.43,10.90431409]
[1750784384872,659.79701409,146.54,146.39,54.18]
[1750784384873,13.6325,146.63,146.44,54.16]
[1750784385081,13.6325,146.63,146.41,10.90431409]
[1750784385082,65.06431409,146.61,146.45,54.16]
[1750784385266,65.06431409,146.61,146.46,10.90431409]
[1750784385777,6.8859,146.62,146.51,6.8217]
[1750784386080,6.8859,146.62,146.51,67.16431409]
[1750784386376,6.8859,146.62,146.52,62.0]
[1750784386575,56.26,146.61,146.48,10.90431409]
[1750784386780,6.8195,146.56,146.5,6.8219]
[1750784386971,10.90431409,146.6,146.48,10.90431409]
[1750784387170,56.26,146.61,146.47,56.26]
[1750784387371,10.90431409,146.6,146.49,6.8224]
[1750784387574,10.90431409,146.6,146.48,10.90431409]
[1750784388078,56.26,146.61,146.47,67.16431409]
[1750784388378,56.26,146.61,146.46,10.90431409]
[1750784388379,10.90431409,146.59,146.46,10.90431409]
[1750784388586,10.90431409,146.59,146.46,67.14431409]
[1750784388785,10.90431409,146.59,146.46,56.24]
[1750784389279,56.26,146.61,146.46,56.24]
[1750784389280,56.26,146.61,146.48,10.90431409]
[1750784389482,6.8859,146.62,146.49,62.0]
[1750784389884,6.8859,146.62,146.55,10.90431409]
[1750784390085,6.8179,146.6,146.56,10.90431409]
[1750784390386,6.8859,146.62,146.55,10.90431409]
[1750784390596,6.8859,146.62,146.53,68.96431409]
[1750784391279,6.8859,146.62,146.56,10.90431409]
[1750784391473,6.8859,146.62,146.55,10.90431409]
[1750784391980,10.90431409,146.58,146.45,10.90431409]
[1750784392185,10.90431409,146.58,146.44,58.04]
[1750784392383,58.04,146.61,146.44,58.04]
[1750784392690,68.94431409,146.61,146.48,10.90431409]
[1750784392891,10.90431409,146.58,146.46,10.90431409]
[1750784393090,10.90431409,146.55,146.44,68.94431409]
[1750784393286,6.7852,146.54,146.44,58.04]
[1750784393789,6.8232,146.48,146.44,58.04]
[1750784394193,6.7852,146.54,146.44,58.04]
[1750784394583,10.90431409,146.53,146.42,589.6]
[1750784395495,10.90431409,146.53,146.4,122.28]
[1750784395795,6.7852,146.54,146.4,133.18431409]
[1750784395992,10.90431409,146.52,146.4,133.18431409]
[1750784396194,10.90431409,146.52,146.4,60.28]
[1750784396390,10.90431409,146.5,146.4,60.28]
[1750784396594,60.28,146.49,146.36,71.18431409]
[1750784396987,60.28,146.49,146.4,6.8266]
[1750784397396,60.28,146.49,146.4,10.90431409]
[1750784398596,6.8246,146.45,146.39,10.90431409]
[1750784398985,6.8251,146.44,146.36,60.28]
[1750784399191,60.28,146.49,146.39,10.90431409]
[1750784399492,6.8245,146.46,146.39,10.90431409]
[1750784399899,60.28,146.49,146.41,6.8261]
[1750784400098,6.8241,146.46,146.41,6.8261]
[1750784400299,6.8241,146.46,146.39,10.90431409]
[1750784400497,60.28,146.49,146.4,6.8267]
[1750784400701,6.8253,146.44,146.4,6.8267]
[1750784401193,60.28,146.49,146.4,10.90431409]
[1750784401392,60.28,146.53,146.43,10.90431409]
[1750784401600,10.90431409,146.52,146.41,67.1061]
[1750784401792,10.90431409,146.52,146.41,60.28]
[1750784402098,6.8254,146.44,146.37,72.90431409]
[1750784402297,10.90431409,146.49,146.37,72.90431409]
[1750784402593,10.90431409,146.49,146.36,71.18431409]
[1750784402594,60.28,146.48,146.36,71.18431409]
[1750784402794,10.90431409,146.43,146.32,10.90431409]
[1750784403000,6.8094,146.42,146.32,10.90431409]
[1750784403204,6.8094,146.42,146.34,6.8296]
[1750784403205,6.8276,146.39,146.34,6.8296]
[1750784403500,6.8094,146.42,146.32,10.90431409]
[1750784403689,6.8094,146.42,146.31,60.28]
[1750784404194,4.5097,146.42,146.31,60.28]
[1750784404399,2.2997,146.47,146.4,10.90431409]
[1750784404699,6.8244,146.46,146.43,10.90431409]
[1750784404908,4.6116,146.47,146.43,10.90431409]
[1750784405202,2.2473,146.5,146.38,60.28]
[1750784405499,2.2473,146.5,146.41,10.90431409]
[1750784405800,6.826,146.42,146.36,184.68431409]
[1750784405998,71.18431409,146.46,146.34,60.28]
[1750784406208,6.8279,146.38,146.34,60.28]
[1750784406497,2.2877,146.45,146.33,10.90431409]
[1750784406701,10.90431409,146.43,146.31,10.90431409]
[1750784406895,591.8677,146.45,146.3,60.28]
[1750784407098,2.3119,146.42,146.3,60.28]
[1750784407299,62.5273,146.41,146.31,10.90431409]
[1750784407499,10.90431409,146.4,146.3,60.28]
[1750784407702,10.90431409,146.38,146.28,10.90431409]
[1750784407908,2.4169,146.37,146.27,10.90431409]
[1750784408300,60.28,146.36,146.27,10.90431409]
[1750784408901,60.28,146.36,146.31,6.8307]
[1750784409104,60.28,146.36,146.3,10.90431409]
[1750784409302,60.28,146.36,146.29,10.90431409]
[1750784410096,60.28,146.36,146.3,6.8313]
[1750784410301,60.28,146.36,146.29,10.90431409]
[1750784410498,60.28,146.36,146.32,6.8303]
[1750784410710,9.2455,146.37,146.32,6.8303]
[1750784410907,2.4169,146.37,146.29,10.90431409]
[1750784411207,2.4169,146.37,146.26,122.28]
[1750784411401,2.4169,146.37,146.27,10.90431409]
[1750784411713,2.4169,146.37,146.29,6.8316]
[1750784411905,2.4169,146.37,146.27,10.90431409]
[1750784412207,2.4169,146.37,146.26,62.0]
[1750784412403,2.4169,146.37,146.17,10.90431409]
[1750784412404,10.90431409,146.3,146.17,10.90431409]
[1750784412708,6.8337,146.26,146.17,10.90431409]
[1750784412913,7.0834,146.29,146.11,175.8]
[1750784412914,10.90431409,146.28,146.18,3.06508674]
[1750784413127,10.90431409,146.28,146.14,10.90431409]
[1750784413309,7.0834,146.29,146.17,10.90431409]
[1750784413505,10.90431409,146.27,146.11,240.16]
[1750784413708,62.28,146.26,146.14,10.90431409]
[1750784414017,62.28,146.26,146.17,10.90431409]
[1750784414208,7.0834,146.29,146.2,10.90431409]
[1750784414408,6.8341,146.25,146.2,17.74051409]
[1750784414611,7.0834,146.29,146.2,10.90431409]
[1750784414810,7.0834,146.29,146.21,10.90431409]
[1750784415023,7.0834,146.29,146.17,62.28]
[1750784415210,10.90431409,146.27,146.15,10.90431409]
[1750784415412,6.838,146.17,146.11,10.90431409]
[1750784415620,62.3,146.23,146.12,3.09042139]
[1750784415816,62.3,146.23,146.1,589.8]
[1750784416019,2.2003,146.22,146.11,3.10397593]
[1750784416316,2.2003,146.22,146.1,600.70431409]
[1750784416615,2.2003,146.22,146.12,10.90431409]
[1750784416812,2.2003,146.22,146.15,10.90431409]
[1750784417905,6.8349,146.23,146.15,10.90431409]
[1750784418114,2.2336,146.26,146.07,65.52]
[1750784418409,2.2336,146.26,146.08,138.46787311]
[1750784418410,6.8376,146.18,146.08,138.46787311]
[1750784418625,10.94787311,146.23,146.11,10.94787311]
[1750784418913,10.94787311,146.24,146.11,10.94787311]
[1750784419510,2.2336,146.26,146.11,10.94787311]
[1750784419511,10.94787311,146.25,146.11,10.94787311]
[1750784420113,10.94787311,146.25,146.14,10.94787311]
[1750784420308,2.2336,146.26,146.16,6.8381]
[1750784420513,2.2336,146.26,146.14,10.94787311]
[1750784421515,2.2336,146.26,146.16,6.8382]
[1750784421712,2.2336,146.26,146.14,10.94787311]
[1750784421917,6.8371,146.19,146.12,666.82787311]
[1750784422114,2.2336,146.26,146.15,10.94787311]
[1750784423023,2.2336,146.26,146.13,72.94787311]
[1750784423333,13.18147311,146.26,146.14,10.94787311]
[1750784423828,13.18147311,146.26,146.13,62.0]
[1750784424135,6.8374,146.18,146.13,68.8392]
[1750784424324,13.18147311,146.26,146.13,62.0]
[1750784424824,6.8373,146.18,146.13,79.78727311]
[1750784425025,13.18147311,146.26,146.13,72.94787311]
[1750784425323,2.2336,146.26,146.13,68.8396]
[1750784425628,10.94787311,146.24,146.13,62.0]
[1750784425832,6.8364,146.2,146.15,6.8382]
[1750784426230,13.18147311,146.26,146.13,62.0]
[1750784426531,13.18147311,146.26,146.14,6.8388]
[1750784426728,10.94787311,146.2,146.08,10.94787311]
[1750784426930,10.94787311,146.2,146.09,65.54]
[1750784427119,6.9091,146.19,146.09,65.54]
[1750784427425,6.839,146.15,146.09,65.54]
[1750784427631,6.9091,146.19,146.1,10.94696618]
[1750784428135,6.8384,146.16,146.12,6.8397]
[1750784428434,6.8384,146.16,146.09,65.54]
[1750784428435,6.9091,146.19,146.09,65.54]
[1750784428730,6.8397,146.13,146.09,72.3811]
[1750784428925,6.9091,146.19,146.09,65.54]
[1750784429335,6.8399,146.13,146.09,72.3811]
[1750784429523,6.9091,146.19,146.09,72.3811]
[1750784429825,6.9091,146.19,146.09,65.54]
[1750784431026,6.8394,146.14,146.1,6.8406]
[1750784431221,6.9091,146.19,146.09,65.54]
[1750784431622,6.9091,146.19,146.11,10.94696618]
[1750784432229,6.8389,146.15,146.11,17.78716618]
[1750784432426,10.94696618,146.18,146.04,77.88382361]
[1750784432627,10.94696618,146.18,146.01,590.64]
[1750784432834,10.95837761,146.11,145.99,10.95837761]
[1750784433119,4.5741,146.1,145.99,10.95837761]
[1750784433320,590.64,146.18,145.98,65.56]
[1750784433321,10.95837761,146.16,146.05,10.95837761]
[1750784433529,2.304,146.15,146.05,10.95837761]
[1750784433724,6.8418,146.09,146.05,10.95837761]
[1750784433929,2.304,146.15,146.05,10.95837761]
[1750784434341,6.8417,146.09,146.07,7.14934966]
[1750784434540,2.304,146.15,146.07,7.14934966]
[1750784434727,6.8406,146.11,146.08,6.8419]
[1750784434928,6.8406,146.11,146.09,7.14934966]
[1750784435238,6.8389,146.15,146.09,7.14934966]
[1750784435438,6.8389,146.15,146.13,7.14934966]
[1750784435736,2.3537,146.21,146.14,7.14934966]
[1750784435939,6.8383,146.16,146.14,7.14934966]
[1750784436436,6.8386,146.15,146.14,7.14934966]
[1750784436631,2.3537,146.21,146.14,7.14934966]
[1750784436934,6.8373,146.18,146.16,7.14934966]
[1750784437128,2.2131,146.24,146.16,7.14934966]
[1750784437328,2.2131,146.24,146.1,65.56]
[1750784437539,2.2131,146.24,146.18,7.14934966]
[1750784438234,2.2131,146.24,146.17,10.93615373]
[1750784438737,2.2131,146.24,146.17,17.77345373]
[1750784439328,6.8366,146.2,146.17,17.77345373]
[1750784439537,65.58,146.26,146.17,10.93615373]
[1750784439926,65.58,146.26,146.18,6.8371]
[1750784440126,65.58,146.26,146.17,10.93615373]
[1750784440636,65.58,146.26,146.18,6.8369]
[1750784440939,76.51615373,146.26,146.16,65.58]
[1750784441336,6.8377,146.18,146.16,65.58]
[1750784441744,65.58,146.26,146.14,65.56]
[1750784441932,6.837,146.19,146.15,10.93615373]
[1750784442132,65.58,146.26,146.15,17.77455373]
[1750784442340,65.58,146.26,146.15,10.93615373]
[1750784442530,10.93615373,146.24,146.14,65.56]
[1750784442728,2.2653,146.23,146.12,76.49615373]
[1750784442940,2.2653,146.23,146.11,127.56]
[1750784443144,6.872,146.21,146.11,127.56]
[1750784443443,10.93615373,146.21,146.11,65.56]
[1750784443743,10.93615373,146.21,146.07,601.57615373]
[1750784443934,4.6002,146.22,146.1,10.93615373]
[1750784444137,6.872,146.21,146.11,6.8405]
[1750784444531,4.6002,146.22,146.1,10.93615373]
[1750784445132,11.4722,146.22,146.1,10.93615373]
[1750784445742,11.4722,146.22,146.09,76.51615373]
[1750784446137,6.8386,146.16,146.09,76.51615373]
[1750784446434,11.4722,146.22,146.1,62.0]
[1750784446742,4.6002,146.22,146.1,62.0]
[1750784447138,4.6002,146.22,146.12,6.8398]
[1750784447340,4.6002,146.22,146.09,76.51615373]
[1750784447740,6.8393,146.14,146.09,76.51615373]
[1750784448245,10.93615373,146.2,146.09,65.58]
[1750784448544,74.65615373,146.2,146.08,74.65615373]
[1750784448742,6.872,146.19,146.08,74.65615373]
[1750784448942,6.8403,146.12,146.08,81.49775373]
[1750784449142,74.65615373,146.2,146.08,74.65615373]
[1750784449538,63.72,146.2,146.08,74.65615373]
[1750784449746,63.72,146.2,146.08,63.72]
[1750784449943,63.72,146.2,146.1,10.93615373]
[1750784450345,63.72,146.2,146.11,62.0]
[1750784450545,6.8398,146.13,146.1,10.93615373]
[1750784450739,74.65615373,146.2,146.1,10.93615373]
[1750784450940,81.52815373,146.2,146.1,10.93615373]
[1750784451245,74.65615373,146.2,146.1,10.93615373]
[1750784451841,74.65615373,146.2,146.1,17.77705373]
[1750784452045,74.65615373,146.2,146.1,10.93615373]
[1750784452340,6.8395,146.14,146.08,74.65615373]
[1750784452648,74.65615373,146.2,146.09,3.14833191]
[1750784452842,74.65615373,146.2,146.08,74.65615373]
[1750784453043,74.65615373,146.2,146.1,6.8405]
[1750784453538,6.8403,146.12,146.08,17.77785373]
[1750784453841,13.6737,146.19,146.07,654.36]
[1750784454035,13.6737,146.19,146.09,6.8414]
[1750784454239,13.6737,146.19,146.07,654.36]
[1750784454539,13.6737,146.19,146.08,3.15310173]
[1750784454847,13.6737,146.19,146.09,3.15310173]
[1750784455049,13.6737,146.19,146.07,654.36]
[1750784455251,13.6737,146.19,146.08,3.15524875]
[1750784455440,13.6737,146.19,146.07,654.36]
[1750784455640,6.8406,146.11,146.08,9.99681421]
[1750784455941,13.6737,146.19,146.09,3.15511421]
[1750784456141,13.6737,146.19,146.1,3.15511421]
[1750784456441,10.93615373,146.17,146.07,63.72]
[1750784456644,10.93615373,146.14,146.08,3.16132516]
[1750784456846,4.785,146.13,146.06,6.8427]
[1750784457040,2.2488,146.16,146.08,10.93615373]
[1750784457343,2.2488,146.16,146.09,3.16681682]
[1750784457542,2.2488,146.16,146.08,17.77775373]
[1750784457745,6.8404,146.12,146.08,17.77775373]
[1750784458153,2.2488,146.16,146.09,6.8413]
[1750784458348,2.2488,146.16,146.09,13.98799689]
[1750784458549,2.2488,146.16,146.1,6.8409]
[1750784458852,6.8385,146.16,146.13,7.14669689]
[1750784459036,4.785,146.18,146.13,7.14669689]
[1750784459445,6.8387,146.15,146.13,7.14669689]
[1750784460338,2.2488,146.22,146.13,7.14669689]
[1750784460545,2.2488,146.22,146.14,7.14669689]
[1750784462142,2.2488,146.22,146.11,61.86]
[1750784462448,6.8381,146.17,146.12,7.14669689]
[1750784462651,2.2488,146.22,146.12,7.14669689]
[1750784462840,66.406,146.26,146.18,7.14669689]
[1750784463037,4.546,146.26,146.2,7.14669689]
[1750784463241,2.3246,146.28,146.22,7.14669689]
[1750784463437,6.8342,146.25,146.22,13.98189689]
[1750784463643,6.8342,146.25,146.22,7.14669689]
[1750784463844,61.86,146.34,146.24,7.14669689]
[1750784464152,61.86,146.34,146.25,7.14669689]
[1750784465547,61.86,146.34,146.24,61.86]
[1750784465548,7.14669689,146.33,146.23,7.14669689]
[1750784465743,7.14669689,146.29,146.18,60.0]
[1750784465944,6.7066,146.36,146.25,7.13307637]
[1750784466155,6.7066,146.36,146.28,7.12891803]
[1750784467258,6.7066,146.36,146.26,7.12891803]
[1750784467552,6.7066,146.36,146.3,7.12891803]
[1750784468450,6.7066,146.36,146.3,13.96021803]
[1750784468451,6.8294,146.35,146.3,13.96021803]
[1750784468657,6.7066,146.36,146.3,6.8313]
[1750784468858,6.7066,146.36,146.3,7.12891803]
[1750784469054,590.62,146.44,146.34,7.12891803]
[1750784469254,6.8079,146.43,146.32,61.84]
[1750784469553,6.8079,146.43,146.35,7.12891803]
[1750784469753,13.93681803,146.43,146.32,61.84]
[1750784469953,6.8292,146.36,146.33,7.12891803]
[1750784470148,6.8079,146.43,146.33,7.12891803]
[1750784470964,6.8079,146.43,146.37,7.12891803]
[1750784472557,6.8275,146.39,146.37,7.12891803]
[1750784473165,68.95968998,146.49,146.38,7.11968998]
[1750784473458,2.2461,146.46,146.37,7.11968998]
[1750784473655,6.8273,146.4,146.37,7.11968998]
[1750784474159,2.2461,146.46,146.39,7.11968998]
[1750784474360,4.7178,146.48,146.43,7.11968998]
[1750784474565,2.3818,146.48,146.43,7.11968998]
[1750784475464,68.93968998,146.57,146.47,7.11968998]
[1750784475661,6.8223,146.5,146.49,7.11968998]
[1750784476055,7.0051,146.56,146.49,7.11968998]
[1750784476465,7.0051,146.56,146.51,7.11968998]
[1750784476656,7.0051,146.56,146.44,61.82]
[1750784476657,650.12,146.61,146.53,7.11968998]
[1750784477057,7.0051,146.62,146.57,7.11968998]
[1750784477558,73.5916,146.65,146.48,62.96]
[1750784477766,4.6109,146.61,146.48,62.96]
[1750784477962,2.1844,146.64,146.48,62.96]
[1750784478265,2.1844,146.64,146.53,7.10580112]
[1750784478266,9.30080112,146.63,146.53,7.10580112]
[1750784478451,7.10305066,146.61,146.48,62.96]
[1750784478656,7.10756897,146.59,146.49,7.10756897]
[1750784478851,7.10756897,146.59,146.49,70.06756897]
[1750784479264,9.30016441,146.63,146.54,7.10516441]
[1750784480053,6.82,146.55,146.54,7.10516441]
[1750784480251,9.30016441,146.63,146.49,62.96]
[1750784480466,7.10516441,146.61,146.51,7.10516441]
[1750784480765,7.10516441,146.59,146.49,70.04516441]
[1750784481061,7.10516441,146.57,146.48,62.94]
[1750784481257,6.8225,146.5,146.48,62.94]
[1750784482166,7.10516441,146.57,146.48,62.94]
[1750784482359,7.10516441,146.57,146.43,590.16]
[1750784482560,9.51296441,146.57,146.47,7.10516441]
[1750784482861,7.10516441,146.55,146.32,13.6608]
[1750784483064,7.10516441,146.51,146.42,7.10516441]
[1750784483259,7.10516441,146.51,146.42,70.04516441]
[1750784483459,7.10516441,146.47,146.38,62.94]
[1750784483668,7.10516441,146.45,146.38,62.94]
[1750784483967,9.33946441,146.5,146.39,7.10516441]
[1750784484156,2.2343,146.5,146.43,7.10516441]
[1750784485261,6.8244,146.46,146.43,7.10516441]
[1750784485559,7.10516441,146.45,146.37,62.92]
[1750784485762,7.10516441,146.43,146.33,589.64]
[1750784485962,7.10516441,146.42,146.33,596.74516441]
[1750784486365,7.10516441,146.44,146.33,596.74516441]
[1750784487266,2.2593,146.43,146.33,603.57526441]
[1750784487467,2.2593,146.43,146.33,596.74516441]
[1750784487669,2.2593,146.43,146.35,7.10516441]
[1750784487865,2.2593,146.43,146.37,7.10516441]
[1750784488372,2.2593,146.43,146.35,7.10516441]
[1750784488670,2.2593,146.43,146.34,7.10516441]
[1750784489670,7.10516441,146.42,146.33,596.74516441]
[1750784489867,11.85826441,146.42,146.33,596.74516441]
[1750784490066,4.7531,146.42,146.33,596.74516441]
[1750784490467,4.7531,146.42,146.34,7.10516441]
[1750784491062,6.8276,146.39,146.34,13.93456441]
[1750784491362,6.8276,146.39,146.34,7.10516441]
[1750784491563,6.8277,146.39,146.34,13.93446441]
[1750784491764,4.7531,146.42,146.34,13.93446441]
[1750784491964,4.7531,146.42,146.34,7.10516441]
[1750784492167,4.7531,146.42,146.34,13.93486441]
[1750784492462,4.7531,146.42,146.35,7.10516441]
[1750784494171,7.10516441,146.41,146.26,589.68]
[1750784494369,7.10516441,146.41,146.31,7.10516441]
[1750784494975,6.8288,146.36,146.32,6.8305]
[1750784495273,4.7531,146.42,146.33,7.10516441]
[1750784495682,7.10516441,146.41,146.31,7.10516441]
[1750784496173,7.10516441,146.41,146.3,7.10516441]
[1750784496562,13.97716441,146.41,146.3,7.10516441]
[1750784496865,7.10516441,146.41,146.3,7.10516441]
[1750784497668,4.7531,146.42,146.27,61.08]
[1750784497872,7.10516441,146.38,146.28,7.10516441]
[1750784498571,6.8302,146.34,146.3,7.10516441]
[1750784498764,4.7531,146.42,146.32,7.10516441]
[1750784498964,4.7531,146.42,146.35,7.10516441]
[1750784499162,7.10516441,146.48,146.39,7.10516441]
[1750784499673,7.10516441,146.48,146.38,7.10516441]
[1750784499865,7.10516441,146.48,146.35,62.0]
[1750784500072,7.10516441,146.48,146.39,7.10516441]
[1750784500267,6.8265,146.41,146.39,7.10516441]
[1750784500772,6.827,146.4,146.39,7.10516441]
[1750784501067,7.11962615,146.45,146.35,62.0]
[1750784501275,7.11962615,146.45,146.34,7.11962615]
[1750784501461,7.11962615,146.45,146.34,13.94922615]
[1750784501774,7.11962615,146.45,146.34,7.11962615]
[1750784502170,6.8282,146.38,146.34,13.94932615]
[1750784502869,61.1,146.46,146.37,7.1217767]
[1750784503377,6.8268,146.41,146.37,13.9499767]
[1750784503578,7.1217767,146.45,146.37,7.1217767]
[1750784503774,7.1217767,146.45,146.35,7.1217767]
[1750784503972,6.8284,146.37,146.35,7.1217767]
[1750784504172,7.12403414,146.4,146.3,7.12403414]
[1750784504370,4.6809,146.39,146.3,7.12403414]
[1750784504574,7.006,146.39,146.32,7.12741799]
[1750784505071,7.006,146.39,146.31,7.12741799]
[1750784505775,14.13341799,146.39,146.27,230.14]
[1750784505977,14.13341799,146.39,146.29,7.12741799]
[1750784506372,21.00541799,146.39,146.29,7.12741799]
[1750784506674,14.13341799,146.39,146.29,7.12741799]
[1750784506978,6.8297,146.34,146.29,7.12741799]
[1750784507382,6.8294,146.35,146.31,7.12741799]
[1750784507579,7.006,146.39,146.31,7.12741799]
[1750784507876,7.12741799,146.37,146.27,237.26741799]
[1750784508082,7.12741799,146.37,146.27,66.40741799]
[1750784508375,6.831,146.32,146.28,6.8323]
[1750784508677,66.40741799,146.35,146.26,7.12741799]
[1750784508885,7.12741799,146.33,146.24,7.12741799]
[1750784509382,2.2311,146.32,146.25,7.12741799]
[1750784510071,6.8327,146.28,146.24,6.8343]
[1750784510390,7.12741799,146.3,146.21,7.12741799]
[1750784510703,7.12741799,146.28,146.19,773.67571774]
[1750784511381,66.40741799,146.3,146.19,773.67571774]
[1750784511583,59.28,146.3,146.19,773.67571774]
[1750784511786,66.40741799,146.3,146.19,656.24741799]
[1750784512174,6.8347,146.24,146.2,6.836]
[1750784513185,73.27941799,146.3,146.2,6.836]
[1750784513186,6.8349,146.23,146.2,6.836]
[1750784513375,73.27941799,146.3,146.19,66.40741799]
[1750784514080,73.27941799,146.3,146.2,6.8361]
[1750784514270,73.27941799,146.3,146.19,7.12741799]
[1750784514474,73.27941799,146.3,146.21,6.8356]
[1750784514883,73.27941799,146.3,146.19,7.12741799]
[1750784515583,6.8342,146.25,146.21,6.8357]
[1750784515782,73.27941799,146.3,146.21,7.12741799]
[1750784515982,66.152,146.3,146.21,7.12741799]
[1750784516196,66.152,146.3,146.23,7.12741799]
[1750784516489,59.28,146.3,146.23,7.12741799]
[1750784516881,6.8333,146.27,146.24,6.8343]
[1750784517081,59.28,146.3,146.23,7.12741799]
[1750784517277,59.28,146.3,146.25,7.12741799]
[1750784517588,4.793,146.31,146.25,7.12741799]
[1750784518390,6.8335,146.26,146.24,6.8341]
[1750784518584,64.46741799,146.34,146.21,57.34]
[1750784518585,57.34,146.39,146.25,7.12741799]
[1750784518785,6.8311,146.31,146.3,7.12741799]
[1750784519295,7.12741799,146.35,146.26,64.46741799]
[1750784519495,7.12741799,146.35,146.26,57.34]
[1750784519724,7.12741799,146.33,146.24,7.12741799]
[1750784519883,6.8317,146.3,146.27,7.12741799]
[1750784520791,57.34,146.34,146.25,7.12741799]
[1750784520986,7.12741799,146.33,146.23,13.96191799]
[1750784521185,6.8336,146.26,146.23,7.12741799]
[1750784521483,7.12741799,146.31,146.21,13.96301799]
[1750784521690,6.8356,146.22,146.18,64.46741799]
[1750784521895,7.12741799,146.27,146.18,64.46741799]
[1750784522086,2.2225,146.26,146.18,7.12741799]
[1750784522689,6.8361,146.21,146.18,7.12741799]
[1750784523201,2.2225,146.26,146.18,13.96461799]
[1750784523394,2.2225,146.26,146.17,7.12741799]
[1750784524191,2.2225,146.26,146.17,13.96481799]
[1750784524393,6.8361,146.21,146.17,13.96481799]
[1750784524593,2.2225,146.26,146.19,7.12741799]
[1750784525390,4.6719,146.3,146.23,7.12741799]
[1750784525593,2.2542,146.3,146.25,7.12741799]
[1750784525897,2.3534,146.33,146.29,7.12741799]
[1750784526093,57.36,146.36,146.29,7.12741799]
[1750784526287,57.36,146.36,146.31,6.831]
[1750784527092,6.8295,146.35,146.29,7.12741799]
[1750784527396,7.19,146.38,146.33,6.83]
[1750784527596,7.19,146.38,146.31,7.12741799]
[1750784527793,4.7711,146.38,146.33,7.12741799]
[1750784528102,6.8289,146.36,146.33,7.12741799]
[1750784528491,6.8289,146.36,146.33,13.95731799]
[1750784528703,4.7711,146.38,146.33,7.12741799]
[1750784528892,4.7711,146.38,146.31,7.12741799]
[1750784529295,4.7711,146.38,146.29,64.48741799]
[1750784529487,4.7711,146.38,146.3,6.8313]
[1750784529689,4.7711,146.38,146.29,64.48741799]
[1750784529898,4.7711,146.38,146.29,7.12741799]
[1750784530202,4.7711,146.38,146.3,6.8313]
[1750784530390,4.7711,146.38,146.31,7.12741799]